bitfinex/quotes_BTCUSD_20230118
["timestamp","ask_amount","ask_price","bid_price","bid_amount"]
[1674064357604,2.28834118,20902.0,20899.0,0.01210952]
[1674064357856,0.312796,20901.0,20899.0,0.01210952]
[1674064358161,0.31355,20900.0,20899.0,0.01210952]
[1674064358411,0.792018,20900.0,20899.0,0.01210952]
[1674064359465,0.942018,20900.0,20899.0,0.01210952]
[1674064359730,1.033018,20900.0,20899.0,0.01210952]
[1674064359992,1.033018,20900.0,20899.0,0.01408313]
[1674064360305,1.57513169,20900.0,20899.0,0.01408313]
[1674064360553,1.57513169,20900.0,20891.0,0.6363]
[1674064360554,0.15,20899.0,20890.0,0.1683067]
[1674064360808,1.435649,20897.0,20890.0,0.1683067]
[1674064361075,1.435649,20897.0,20889.0,0.478706]
[1674064361076,0.90611907,20896.0,20892.0,0.11348996]
[1674064361346,0.797617,20895.0,20892.0,0.11348996]
[1674064361617,0.67290497,20895.0,20894.0,0.18743212]
[1674064361876,0.478584,20895.0,20891.0,0.18151201]
[1674064362172,0.317861,20894.0,20891.0,0.18151201]
[1674064362449,0.4011261,20896.0,20895.0,0.16794087]
[1674064362730,0.478529,20898.0,20895.0,0.16794087]
[1674064363046,0.478529,20898.0,20895.0,0.19410277]
[1674064363047,0.957053,20898.0,20895.0,0.19410277]
[1674064363311,0.301955,20897.0,20896.0,0.0261619]
[1674064363568,0.73472133,20900.0,20896.0,0.19352873]
[1674064363819,0.84187393,20900.0,20896.0,0.19352873]
[1674064364391,0.84187393,20900.0,20892.0,1.419959]
[1674064364392,0.35434149,20897.0,20892.0,0.7899372]
[1674064364670,0.83288149,20897.0,20893.0,0.3]
[1674064364927,0.4011261,20898.0,20896.0,0.006]
[1674064365179,0.633472,20900.0,20896.0,0.006]
[1674064365180,0.79954026,20900.0,20896.0,0.006]
[1674064365443,0.8795791,20901.0,20897.0,0.0261619]
[1674064365711,0.478423,20902.0,20898.0,0.0261619]
[1674064365998,0.478423,20902.0,20899.0,0.0261619]
[1674064366253,0.3697158,20901.0,20898.0,0.13201403]
[1674064366763,0.19432097,20900.0,20893.0,1.363108]
[1674064367083,0.479516,20898.0,20896.0,0.024]
[1674064367349,0.310992,20897.0,20892.0,0.0261619]
[1674064367602,0.99094297,20896.0,20890.0,0.67082892]
[1674064367853,0.51956897,20895.0,20890.0,0.19215392]
[1674064368104,1.273963,20894.0,20890.0,0.19215392]
[1674064368353,0.51631897,20893.0,20889.0,0.1282]
[1674064368633,0.23479701,20894.0,20892.0,0.066]
[1674064368875,0.35580162,20892.0,20887.0,0.01210829]
[1674064369127,0.35580162,20892.0,20890.0,0.065]
[1674064369128,0.303639,20891.0,20890.0,0.065]
[1674064369385,0.83446662,20892.0,20890.0,0.065]
[1674064369386,1.31311862,20892.0,20890.0,0.065]
[1674064369663,0.337095,20891.0,20890.0,0.065]
[1674064370127,0.81577,20891.0,20887.0,0.01210829]
[1674064370384,0.329105,20890.0,20889.0,0.065]
[1674064370668,0.329105,20890.0,20888.0,0.07683596]
[1674064370936,0.177,20891.0,20888.0,0.07683596]
[1674064371181,0.318628,20890.0,20887.0,0.01210829]
[1674064371429,0.48902748,20890.0,20887.0,0.07810829]
[1674064371680,1.25210851,20890.0,20887.0,0.01210829]
[1674064371927,1.25410851,20890.0,20888.0,0.066]
[1674064372442,0.334904,20889.0,20888.0,0.066]
[1674064372690,1.25412151,20890.0,20888.0,0.066]
[1674064372940,0.478675,20891.0,20887.0,0.14019891]
[1674064373187,0.002,20890.0,20887.0,0.23236081]
[1674064373448,0.002,20890.0,20887.0,0.68494891]
[1674064373748,0.027,20889.0,20888.0,0.005]
[1674064373963,0.8797781,20892.0,20887.0,0.61894891]
[1674064374216,0.8797781,20892.0,20887.0,0.64511081]
[1674064374464,0.96476227,20893.0,20888.0,0.3261619]
[1674064374465,0.4011261,20893.0,20888.0,0.3261619]
[1674064374796,0.8797461,20894.0,20889.0,1.3236769]
[1674064374999,0.8797461,20894.0,20890.0,0.0261619]
[1674064375000,1.08686128,20894.0,20890.0,0.0261619]
[1674064375253,0.28533798,20892.0,20890.0,0.0261619]
[1674064375514,0.321212,20891.0,20888.0,0.478739]
[1674064375787,0.28533798,20892.0,20888.0,0.478739]
[1674064375788,0.59544707,20892.0,20888.0,0.478739]
[1674064376056,0.478643,20893.0,20888.0,0.5049009]
[1674064376057,0.8797691,20893.0,20888.0,0.5049009]
[1674064376301,0.027,20890.0,20889.0,0.82556404]
[1674064376543,0.027,20890.0,20889.0,1.90684214]
[1674064376793,0.027,20890.0,20889.0,1.75684214]
[1674064377045,0.4011261,20894.0,20889.0,1.75684214]
[1674064377292,0.50960345,20895.0,20890.0,0.032961]
[1674064377581,0.002,20893.0,20891.0,0.957332]
[1674064377819,1.09673221,20895.0,20891.0,0.957332]
[1674064378067,0.002,20894.0,20891.0,0.0261619]
[1674064378320,0.002,20894.0,20891.0,0.957345]
[1674064378591,0.002,20894.0,20892.0,0.3]
[1674064378824,0.002,20894.0,20893.0,0.91949212]
[1674064379062,0.4011261,20897.0,20893.0,0.92365312]
[1674064379307,0.47636839,20896.0,20893.0,0.15700202]
[1674064379560,0.478538,20897.0,20894.0,0.0261619]
[1674064379561,0.4011261,20897.0,20894.0,0.0261619]
[1674064379815,0.4011261,20899.0,20895.0,1.289316]
[1674064380073,1.21313919,20900.0,20896.0,0.0261619]
[1674064380320,0.15,20899.0,20896.0,0.478545]
[1674064380820,0.15,20899.0,20893.0,1.21063412]
[1674064380821,0.59669084,20898.0,20894.0,0.011]
[1674064381053,0.330063,20897.0,20895.0,0.478571]
[1674064381309,0.46262281,20898.0,20895.0,0.478571]
[1674064381559,0.86011482,20899.0,20894.0,0.478585]
[1674064381560,1.33860982,20899.0,20894.0,0.478585]
[1674064381792,1.90358736,20899.0,20894.0,0.5047469]
[1674064382028,0.4011261,20899.0,20895.0,0.15517466]
[1674064382270,0.0001,20900.0,20896.0,0.561555]
[1674064382271,0.75369788,20900.0,20896.0,0.561555]
[1674064382527,0.35257178,20900.0,20896.0,0.5047169]
[1674064382764,0.0001,20900.0,20896.0,0.5047169]
[1674064383011,0.0001,20900.0,20896.0,0.9832769]
[1674064383271,0.39975026,20902.0,20897.0,0.636205]
[1674064383514,0.8795391,20903.0,20898.0,0.9831689]
[1674064383762,0.31546425,20902.0,20898.0,0.0261619]
[1674064384006,1.280017,20901.0,20898.0,0.0261619]
[1674064384246,1.280017,20901.0,20896.0,0.63303503]
[1674064384247,0.15,20899.0,20896.0,0.71603503]
[1674064384502,0.333333,20898.0,20897.0,0.957057]
[1674064384747,0.4011261,20901.0,20898.0,0.14857285]
[1674064385012,0.79389625,20902.0,20898.0,0.17473475]
[1674064385271,0.31546425,20902.0,20899.0,0.478491]
[1674064385503,0.31546425,20902.0,20899.0,0.5046529]
[1674064385745,0.31546425,20902.0,20899.0,0.478491]
[1674064386298,0.32046425,20902.0,20899.0,0.481491]
[1674064386558,0.313095,20901.0,20898.0,0.62706685]
[1674064386821,0.308158,20900.0,20899.0,0.011]
[1674064387870,0.308158,20900.0,20898.0,0.14857285]
[1674064388123,1.19503435,20902.0,20899.0,0.011]
[1674064388382,0.79390825,20902.0,20899.0,0.0371619]
[1674064388680,0.005,20900.0,20899.0,0.0441619]
[1674064388953,0.005,20900.0,20898.0,0.62706985]
[1674064389181,0.005,20900.0,20899.0,0.011]
[1674064389435,0.1639,20900.0,20897.0,0.478517]
[1674064389695,0.27975097,20900.0,20897.0,0.957038]
[1674064389999,0.4011261,20901.0,20898.0,0.08750268]
[1674064390207,0.478423,20902.0,20898.0,0.08750268]
[1674064390463,0.478423,20902.0,20898.0,0.11366458]
[1674064390973,1.01716514,20902.0,20898.0,0.08750268]
[1674064391276,1.26955702,20901.0,20898.0,0.08750268]
[1674064391539,3.00230582,20900.0,20894.0,0.478603]
[1674064391792,1.68418412,20899.0,20897.0,0.011]
[1674064392082,2.84407902,20898.0,20891.0,0.478668]
[1674064392343,0.8762391,20897.0,20892.0,0.478638]
[1674064392653,0.322288,20896.0,20892.0,0.478638]
[1674064392877,0.322288,20896.0,20891.0,0.65020266]
[1674064392878,1.48111897,20895.0,20891.0,0.17154966]
[1674064393123,0.15,20893.0,20891.0,0.17154966]
[1674064393377,0.51761497,20892.0,20888.0,0.478725]
[1674064393635,0.51761497,20892.0,20891.0,0.083]
[1674064393636,0.47866,20892.0,20891.0,0.083]
[1674064393897,0.787671,20892.0,20891.0,0.083]
[1674064394173,0.309011,20892.0,20891.0,0.083]
[1674064394412,0.309011,20892.0,20887.0,0.17224429]
[1674064394670,0.5511261,20892.0,20891.0,0.011]
[1674064394940,0.75612678,20892.0,20887.0,0.01210829]
[1674064395282,0.75612678,20892.0,20888.0,0.1135784]
[1674064395283,0.329611,20891.0,20888.0,0.1135784]
[1674064395460,1.50641286,20892.0,20891.0,0.007]
[1674064395721,1.09447778,20892.0,20885.0,0.09604713]
[1674064395996,1.06377807,20891.0,20885.0,0.12220903]
[1674064396270,0.91214207,20890.0,20885.0,0.0261619]
[1674064396533,0.50809797,20889.0,20887.0,0.082]
[1674064396830,0.313214,20888.0,20887.0,0.082]
[1674064397313,0.313214,20888.0,20884.0,0.14073645]
[1674064397314,0.317707,20888.0,20884.0,0.14073645]
[1674064397577,0.19432097,20888.0,20885.0,0.081]
[1674064397853,0.69478233,20889.0,20884.0,0.14073645]
[1674064398093,0.08947,20888.0,20887.0,0.004]
[1674064398352,0.22847,20888.0,20884.0,0.16689835]
[1674064398615,0.42379097,20888.0,20884.0,0.22273645]
[1674064398871,1.5252651,20888.0,20883.0,0.0049482]
[1674064399175,0.52994897,20887.0,20884.0,0.082]
[1674064399395,0.314924,20886.0,20883.0,0.0049482]
[1674064399664,0.31622,20885.0,20883.0,0.0049482]
[1674064399918,0.4011261,20886.0,20883.0,0.0049482]
[1674064400176,0.31235009,20886.0,20883.0,0.0049482]
[1674064400478,0.31235009,20886.0,20884.0,0.082]
[1674064400712,0.40112298,20888.0,20884.0,0.16996777]
[1674064400974,0.001,20885.0,20884.0,0.49612967]
[1674064401222,0.001,20888.0,20884.0,0.49612967]
[1674064401223,0.55012298,20888.0,20884.0,0.16996777]
[1674064401492,0.001,20886.0,20884.0,0.19612967]
[1674064401769,0.87887598,20888.0,20884.0,0.46996777]
[1674064402005,1.92075016,20889.0,20884.0,0.50412967]
[1674064402270,2.32087314,20889.0,20884.0,0.50412967]
[1674064402531,2.51519411,20889.0,20884.0,0.49612967]
[1674064402795,1.42389411,20889.0,20884.0,0.49612967]
[1674064403082,1.42389411,20889.0,20884.0,1.46179067]
[1674064403083,0.75085214,20889.0,20884.0,1.46179067]
[1674064403314,0.94517311,20889.0,20884.0,1.46179067]
[1674064403821,0.94517311,20889.0,20884.0,1.45379067]
[1674064404075,0.94517311,20889.0,20884.0,1.46179067]
[1674064404352,0.94517311,20889.0,20884.0,1.45379067]
[1674064404626,0.94517311,20889.0,20884.0,1.46179067]
[1674064404879,0.19432097,20888.0,20884.0,0.65679377]
[1674064405135,0.34432097,20887.0,20884.0,0.008]
[1674064405399,0.50036097,20886.0,20883.0,0.0049482]
[1674064405739,0.294951,20885.0,20884.0,0.008]
[1674064405921,0.294951,20885.0,20883.0,0.0049482]
[1674064405922,0.324961,20885.0,20883.0,0.0049482]
[1674064406182,0.478812,20885.0,20883.0,0.0049482]
[1674064406447,0.33825437,20887.0,20883.0,0.9626432]
[1674064406712,0.33825437,20887.0,20883.0,0.0049482]
[1674064406713,0.47879,20886.0,20883.0,0.0049482]
[1674064407021,0.15,20885.0,20883.0,0.0049482]
[1674064407270,0.628822,20885.0,20883.0,0.0049482]
[1674064407526,0.40782798,20884.0,20883.0,0.0049482]
[1674064407779,1.59356251,20884.0,20883.0,0.0049482]
[1674064408292,1.74356251,20884.0,20883.0,0.0049482]
[1674064408565,1.26472751,20884.0,20883.0,0.0049482]
[1674064408855,0.330125,20884.0,20883.0,0.0049482]
[1674064409108,0.478812,20886.0,20883.0,0.0049482]
[1674064409360,0.478812,20886.0,20883.0,0.0311101]
[1674064409640,0.63537941,20885.0,20884.0,0.004]
[1674064409902,1.11419141,20885.0,20883.0,0.0049482]
[1674064410159,0.491562,20884.0,20883.0,0.0089482]
[1674064410421,0.332949,20884.0,20883.0,0.0049482]
[1674064410680,0.31373041,20885.0,20883.0,0.0129482]
[1674064411005,0.31373041,20885.0,20883.0,0.0049482]
[1674064411006,1.558848,20884.0,20883.0,0.0049482]
[1674064411456,1.82845472,20884.0,20883.0,0.0049482]
[1674064411718,2.15969996,20884.0,20883.0,0.0089482]
[1674064411971,3.42549996,20884.0,20883.0,0.0040482]
[1674064412280,0.17284819,20882.0,20881.0,0.01232403]
[1674064412511,2.52776414,20882.0,20881.0,0.01232403]
[1674064412758,2.46164317,20882.0,20881.0,0.01232403]
[1674064413022,0.15,20881.0,20880.0,0.01214252]
[1674064413291,0.99995198,20881.0,20880.0,0.01214252]
[1674064413561,1.29344198,20881.0,20880.0,4.252e-05]
[1674064414067,0.849119,20881.0,20880.0,0.00104252]
[1674064414601,1.23454162,20881.0,20880.0,0.00104252]
[1674064415122,0.977319,20881.0,20880.0,0.00104252]
[1674064416460,0.699119,20881.0,20880.0,0.00954252]
[1674064416681,1.306123,20881.0,20880.0,0.00954252]
[1674064416936,1.456123,20881.0,20880.0,0.00954252]
[1674064417198,1.75904402,20881.0,20880.0,0.00104252]
[1674064417468,1.456123,20881.0,20880.0,0.00104252]
[1674064418223,0.405629,20881.0,20880.0,0.00104252]
[1674064418731,0.884533,20881.0,20880.0,0.00954252]
[1674064418980,0.405629,20881.0,20880.0,0.00954252]
[1674064419483,0.084,20881.0,20880.0,0.00954252]
[1674064420010,0.084,20881.0,20880.0,0.00104252]
[1674064420011,0.557904,20881.0,20880.0,0.00104252]
[1674064420260,0.402933,20881.0,20880.0,0.00104252]
[1674064420780,1.031837,20881.0,20880.0,0.00104252]
[1674064421035,1.510741,20881.0,20880.0,0.00104252]
[1674064421544,1.360741,20881.0,20880.0,0.00104252]
[1674064421796,1.510741,20881.0,20880.0,0.00104252]
[1674064422302,1.360741,20881.0,20880.0,0.00104252]
[1674064422557,0.881837,20881.0,20880.0,0.00104252]
[1674064422835,0.079,20881.0,20880.0,0.28727331]
[1674064423111,0.079,20881.0,20880.0,0.20315934]
[1674064423364,0.079,20881.0,20880.0,0.01085856]
[1674064423888,0.386027,20881.0,20880.0,0.01085856]
[1674064424194,1.42427607,20881.0,20880.0,0.00223993]
[1674064424697,1.36516893,20881.0,20880.0,0.00223993]
[1674064424965,1.51516893,20881.0,20880.0,0.00223993]
[1674064425567,1.46496893,20881.0,20880.0,0.00223993]
[1674064426302,1.31496893,20881.0,20880.0,0.00223993]
[1674064427231,0.942931,20881.0,20880.0,0.00223993]
[1674064427526,1.63158215,20881.0,20880.0,0.00223993]
[1674064427805,1.46556612,20881.0,20880.0,9.93e-06]
[1674064428080,2.83721176,20881.0,20880.0,0.00125604]
[1674064428347,6e-05,20879.0,20875.0,9.05e-06]
[1674064428615,2.750986,20878.0,20875.0,9.05e-06]
[1674064428873,0.328697,20877.0,20875.0,9.05e-06]
[1674064429158,1.287953,20876.0,20868.0,2.6674]
[1674064429431,0.92110731,20875.0,20870.0,0.12931314]
[1674064429694,0.67339697,20874.0,20870.0,0.12931314]
[1674064429964,0.66258197,20873.0,20867.0,0.19623305]
[1674064430226,0.19432097,20872.0,20867.0,0.17239495]
[1674064430484,1.0264509,20873.0,20867.0,0.14623305]
[1674064430485,0.19432097,20871.0,20867.0,0.14623305]
[1674064430765,0.19432097,20870.0,20867.0,0.14623305]
[1674064431272,0.19432097,20870.0,20867.0,0.028]
[1674064431521,0.19432097,20870.0,20866.0,0.17614845]
[1674064432585,0.19432097,20870.0,20868.0,0.12288292]
[1674064432852,0.500165,20870.0,20868.0,0.12288292]
[1674064433131,0.15,20869.0,20868.0,0.12288292]
[1674064433395,0.15,20869.0,20866.0,0.0787]
[1674064433657,0.15,20869.0,20865.0,0.17372219]
[1674064433921,0.15,20869.0,20865.0,0.09602219]
[1674064433922,0.19432097,20868.0,20865.0,0.09602219]
[1674064434172,0.67352597,20868.0,20863.0,0.10175232]
[1674064434462,0.67352597,20868.0,20861.0,0.01461318]
[1674064434463,0.19432097,20867.0,20861.0,0.01461318]
[1674064434718,0.15,20865.0,20862.0,0.1226465]
[1674064434984,1.15290897,20864.0,20861.0,0.01461318]
[1674064435240,0.49395397,20863.0,20861.0,0.01461318]
[1674064435518,0.314814,20862.0,20861.0,0.01461318]
[1674064436116,0.48424145,20864.0,20862.0,0.10070865]
[1674064436376,0.3973439,20866.0,20862.0,0.0261619]
[1674064436650,0.3973439,20868.0,20863.0,0.2001719]
[1674064436908,0.15,20867.0,20865.0,0.078]
[1674064437214,6e-05,20869.0,20866.0,0.040287]
[1674064437479,6e-05,20869.0,20867.0,0.405087]
[1674064437743,6e-05,20869.0,20868.0,0.340279]
[1674064438017,0.30207903,20869.0,20868.0,0.040279]
[1674064438277,0.30207903,20869.0,20865.0,0.378]
[1674064438567,0.008,20868.0,20865.0,0.378]
[1674064438837,0.30207903,20869.0,20867.0,0.078]
[1674064439107,0.38007903,20869.0,20867.0,0.078]
[1674064439366,0.15,20868.0,20867.0,0.078]
[1674064439631,0.14951697,20868.0,20867.0,0.078]
[1674064439921,0.14951697,20868.0,20863.0,0.11274116]
[1674064440195,0.19432097,20867.0,20865.0,0.002]
[1674064440481,0.62872097,20868.0,20865.0,0.002]
[1674064440736,0.324575,20867.0,20865.0,0.002]
[1674064441008,0.34418,20866.0,20865.0,0.002]
[1674064441311,0.42178,20866.0,20861.0,0.01461318]
[1674064441591,0.7296389,20865.0,20861.0,0.01461318]
[1674064441852,1.14563297,20864.0,20861.0,0.01461318]
[1674064442123,0.319823,20863.0,20861.0,0.01461318]
[1674064442382,0.330652,20862.0,20861.0,0.01461318]
[1674064442695,0.480652,20862.0,20861.0,0.01461318]
[1674064442991,0.330652,20862.0,20861.0,0.01461318]
[1674064443783,0.480652,20862.0,20861.0,0.01461318]
[1674064444333,0.571652,20862.0,20861.0,0.01461318]
[1674064445109,0.480652,20862.0,20861.0,0.01461318]
[1674064445425,1.04885369,20862.0,20859.0,0.0151665]
[1674064445689,0.25591317,20860.0,20859.0,0.0151665]
[1674064445962,0.51202217,20860.0,20859.0,0.0151665]
[1674064446751,0.34812217,20860.0,20859.0,0.0151665]
[1674064447279,0.43912217,20860.0,20859.0,0.0151665]
[1674064447529,0.34812217,20860.0,20859.0,0.0151665]
[1674064447795,0.43912217,20860.0,20859.0,0.0151665]
[1674064448338,0.34812217,20860.0,20859.0,0.0151665]
[1674064448343,0.43912217,20860.0,20859.0,0.0151665]
[1674064448593,0.34812217,20860.0,20859.0,0.0151665]
[1674064449909,0.43912217,20860.0,20859.0,0.0101665]
[1674064450157,0.34812217,20860.0,20859.0,0.0101665]
[1674064450419,0.43912217,20860.0,20859.0,0.0101665]
[1674064450676,0.58912217,20860.0,20859.0,0.0101665]
[1674064451194,0.58918217,20860.0,20859.0,0.0101665]
[1674064451461,0.43918217,20860.0,20859.0,0.0101665]
[1674064451721,0.34818217,20860.0,20859.0,0.0101665]
[1674064452026,0.43918217,20860.0,20859.0,0.0101665]
[1674064452305,1.45061635,20860.0,20859.0,0.0101665]
[1674064452573,1.37935225,20860.0,20859.0,0.0101665]
[1674064452826,1.13835225,20860.0,20859.0,0.0101665]
[1674064453081,1.22935225,20860.0,20859.0,0.0101665]
[1674064453399,0.34818217,20860.0,20859.0,0.0955965]
[1674064453657,0.10567317,20860.0,20859.0,0.1217584]
[1674064453906,0.01467317,20860.0,20859.0,1.2832295]
[1674064454419,0.01467317,20860.0,20859.0,1.83860128]
[1674064454678,0.10567317,20860.0,20859.0,1.98437875]
[1674064454936,0.10567317,20860.0,20859.0,1.50717706]
[1674064454937,0.01467317,20860.0,20859.0,1.50717706]
[1674064455191,0.02467317,20860.0,20859.0,0.53638692]
[1674064456015,0.02467317,20860.0,20859.0,0.97309219]
[1674064456283,0.958397,20869.0,20859.0,2.68524414]
[1674064456509,0.958397,20869.0,20865.0,0.0773]
[1674064456775,0.958397,20869.0,20866.0,0.3374519]
[1674064457028,0.479172,20870.0,20866.0,0.0261619]
[1674064457317,0.479172,20870.0,20867.0,0.0261619]
[1674064457580,0.082,20869.0,20868.0,0.0261619]
[1674064457851,0.00654228,20871.0,20867.0,0.0777]
[1674064458119,0.36817762,20870.0,20867.0,0.0261619]
[1674064458380,0.334907,20869.0,20865.0,0.17482883]
[1674064458701,0.00654228,20871.0,20868.0,0.11301029]
[1674064459248,0.00654228,20871.0,20870.0,0.0775]
[1674064459507,0.00654228,20871.0,20870.0,1.20080859]
[1674064459768,0.00654228,20871.0,20870.0,1.32464669]
[1674064460047,0.08054228,20871.0,20870.0,1.32494742]
[1674064460313,0.08054228,20871.0,20870.0,1.17494742]
[1674064460573,0.00654228,20871.0,20870.0,1.17494742]
[1674064460826,0.00654228,20871.0,20870.0,1.19194742]
[1674064461081,0.00654228,20871.0,20870.0,1.67110342]
[1674064461082,0.01454228,20871.0,20870.0,1.67110342]
[1674064461593,0.01454228,20871.0,20870.0,2.39990342]
[1674064462095,0.01454228,20871.0,20870.0,2.63948342]
[1674064462392,0.01454228,20871.0,20870.0,1.36446287]
[1674064462655,0.01454228,20871.0,20870.0,1.76366456]
[1674064462940,0.01454228,20871.0,20870.0,2.72845942]
[1674064463213,0.01454228,20871.0,20870.0,2.24930342]
[1674064463466,0.01454228,20871.0,20870.0,2.39930342]
[1674064463712,0.01454228,20871.0,20870.0,2.51388894]
[1674064464207,0.01454228,20871.0,20870.0,2.39930342]
[1674064464242,0.01454228,20871.0,20870.0,2.51578263]
[1674064464465,0.01454228,20871.0,20870.0,2.39930342]
[1674064464720,6e-05,20879.0,20872.0,0.5008]
[1674064464976,6e-05,20879.0,20878.0,0.078]
[1674064465265,6e-05,20879.0,20878.0,0.4117379]
[1674064465499,6e-05,20879.0,20878.0,1.89591259]
[1674064465745,6e-05,20879.0,20878.0,2.69884959]
[1674064465982,6e-05,20879.0,20878.0,2.67268769]
[1674064466488,6e-05,20879.0,20878.0,2.67468769]
[1674064467036,6e-05,20879.0,20878.0,2.88254677]
[1674064467289,6e-05,20879.0,20878.0,1.45844508]
[1674064467538,6e-05,20879.0,20878.0,2.51778769]
[1674064467815,6e-05,20879.0,20878.0,3.31378769]
[1674064468305,6e-05,20879.0,20878.0,3.44250909]
[1674064468554,6e-05,20879.0,20878.0,3.44280971]
[1674064468818,6e-05,20879.0,20878.0,1.76480802]
[1674064469097,6e-05,20879.0,20878.0,2.92178271]
[1674064469349,6e-05,20879.0,20878.0,2.79306131]
[1674064469599,6e-05,20879.0,20878.0,3.94306131]
[1674064470372,6e-05,20879.0,20878.0,4.24306131]
[1674064470633,6e-05,20879.0,20878.0,4.48255131]
[1674064471732,0.00894819,20882.0,20880.0,0.5008]
[1674064471886,0.00706165,20888.0,20881.0,1.98132269]
[1674064472143,0.00706165,20888.0,20887.0,0.078]
[1674064472392,0.00706165,20888.0,20887.0,1.67098959]
[1674064472647,0.00706165,20888.0,20887.0,2.47178959]
[1674064472904,0.00706165,20888.0,20887.0,3.47178959]
[1674064473174,0.00706165,20888.0,20887.0,1.94447164]
[1674064473416,0.00706165,20888.0,20887.0,2.03647164]
[1674064473667,0.00706165,20888.0,20887.0,0.224094]
[1674064473923,0.00706165,20888.0,20887.0,0.146094]
[1674064474201,0.44607243,20888.0,20887.0,0.092]
[1674064474423,0.76657743,20888.0,20887.0,0.092]
[1674064475192,0.91657743,20888.0,20887.0,0.092]
[1674064475471,0.91657743,20888.0,20883.0,0.08736674]
[1674064475710,0.09199999,20886.0,20883.0,0.08736674]
[1674064475948,0.09199999,20886.0,20885.0,0.12721932]
[1674064476207,0.09199999,20886.0,20885.0,0.20521932]
[1674064476451,0.09199999,20886.0,20885.0,0.51140132]
[1674064476708,0.39836695,20886.0,20883.0,0.08]
[1674064476987,0.19432097,20885.0,20883.0,0.08]
[1674064477258,0.34432097,20885.0,20883.0,0.002]
[1674064477570,0.87116995,20886.0,20881.0,0.10646148]
[1674064477815,0.39236695,20886.0,20881.0,0.10646148]
[1674064478126,0.58668792,20886.0,20882.0,0.0773]
[1674064478403,0.39836695,20886.0,20883.0,0.1265252]
[1674064478654,0.39236695,20886.0,20883.0,0.1245252]
[1674064478905,0.39236695,20886.0,20883.0,0.0775]
[1674064479173,1.06548092,20886.0,20881.0,0.4853439]
[1674064479667,0.66804797,20885.0,20881.0,0.088]
[1674064479674,0.66804797,20885.0,20880.0,0.0778]
[1674064479926,0.99081397,20884.0,20883.0,0.002]
[1674064480178,0.15,20885.0,20881.0,0.0261619]
[1674064480437,0.87115995,20886.0,20882.0,0.11801848]
[1674064480699,0.87115995,20886.0,20882.0,0.22148038]
[1674064480973,0.15,20885.0,20882.0,0.22148038]
[1674064481234,0.34432097,20885.0,20882.0,0.0773]
[1674064481501,0.628814,20885.0,20880.0,0.5011439]
[1674064481757,0.82313497,20885.0,20881.0,0.09478923]
[1674064482034,0.33708242,20884.0,20881.0,0.09678923]
[1674064482323,0.15,20883.0,20881.0,0.09478923]
[1674064482593,1.107741,20883.0,20882.0,0.006]
[1674064482842,1.107741,20883.0,20880.0,0.0778]
[1674064483097,1.107741,20883.0,20881.0,0.002]
[1674064483381,0.81592142,20884.0,20881.0,0.00014459]
[1674064483653,0.011,20883.0,20881.0,0.00214459]
[1674064483914,0.48986,20883.0,20881.0,0.002]
[1674064484189,0.15,20882.0,20881.0,0.002]
[1674064484468,0.628881,20882.0,20881.0,0.002]
[1674064484957,0.628881,20882.0,20880.0,0.08475268]
[1674064485210,0.478881,20882.0,20881.0,0.002]
[1674064485474,0.478881,20882.0,20876.0,2.6674]
[1674064485745,0.77842248,20882.0,20881.0,0.002]
[1674064486000,0.85997358,20882.0,20881.0,0.002]
[1674064486271,0.85997358,20882.0,20878.0,0.09687836]
[1674064486272,1.33858658,20882.0,20878.0,0.09687836]
[1674064486532,1.39631748,20882.0,20880.0,0.027]
[1674064486799,0.15,20881.0,20876.0,0.0775]
[1674064487048,0.15,20879.0,20876.0,0.0775]
[1674064487560,0.19432097,20878.0,20875.0,0.10712057]
[1674064488077,0.329352,20877.0,20872.0,0.12655768]
[1674064488327,0.19432097,20876.0,20874.0,0.10695115]
[1674064488598,0.15,20876.0,20874.0,0.10695115]
[1674064488876,0.8763229,20878.0,20873.0,0.10605537]
[1674064489137,0.151,20877.0,20873.0,0.13221727]
[1674064489409,0.82332997,20877.0,20871.0,0.01374272]
[1674064489671,0.50108075,20876.0,20874.0,0.048]
[1674064489968,0.15,20875.0,20871.0,0.03990462]
[1674064490253,0.15,20875.0,20871.0,0.00874272]
[1674064490254,0.19432097,20874.0,20871.0,0.00874272]
[1674064490775,0.51200097,20873.0,20871.0,0.00874272]
[1674064491043,1.48035397,20872.0,20871.0,0.00874272]
[1674064491513,1.286033,20872.0,20871.0,0.00874272]
[1674064491775,1.286033,20872.0,20871.0,0.01274272]
[1674064492039,0.01274,20871.0,20866.0,0.01374272]
[1674064492304,1.63182497,20870.0,20866.0,0.01374272]
[1674064492573,0.51121797,20869.0,20866.0,0.01374272]
[1674064492829,1.284972,20868.0,20866.0,0.01374272]
[1674064493116,0.334223,20867.0,20866.0,0.13114896]
[1674064493380,0.958404,20868.0,20866.0,0.13501454]
[1674064494165,1.437606,20868.0,20866.0,0.13501454]
[1674064494427,1.437606,20868.0,20866.0,0.13101454]
[1674064494696,1.437606,20868.0,20866.0,0.01374272]
[1674064494948,0.67826311,20867.0,20866.0,0.01774272]
[1674064495430,0.82826311,20867.0,20866.0,0.01774272]
[1674064495683,0.82826311,20867.0,20866.0,0.01374272]
[1674064495945,0.50016811,20867.0,20866.0,0.01374272]
[1674064496207,0.50016811,20867.0,20866.0,0.01774272]
[1674064496208,0.86934911,20867.0,20866.0,0.01774272]
[1674064497232,0.71934911,20867.0,20866.0,0.01774272]
[1674064497480,0.39316811,20867.0,20866.0,0.01774272]
[1674064497771,0.043,20867.0,20866.0,0.01774272]
[1674064498759,0.143,20867.0,20866.0,0.01774272]
[1674064499047,0.043,20867.0,20866.0,0.01774272]
[1674064499795,0.043,20867.0,20866.0,0.63755472]
[1674064500050,0.043,20867.0,20866.0,0.64333672]
[1674064500361,0.043,20867.0,20866.0,0.01774272]
[1674064500846,0.369607,20867.0,20866.0,0.01774272]
[1674064501361,0.369607,20867.0,20860.0,1.40995612]
[1674064501627,0.958546,20865.0,20861.0,0.3]
[1674064501916,0.19432097,20864.0,20861.0,0.3]
[1674064502155,0.479317,20863.0,20861.0,0.3]
[1674064502406,0.479317,20863.0,20862.0,0.323477]
[1674064502655,0.479317,20863.0,20862.0,0.69914876]
[1674064503180,0.479317,20863.0,20862.0,0.37567176]
[1674064503443,0.479317,20863.0,20860.0,1.25117414]
[1674064503691,0.67363797,20863.0,20860.0,1.29744297]